[Event "WSTCC-50 2024"]
[Site "Krakow"]
[Date "2024.07.07"]
[Round "6.9"]
[White "Mitchell, Martin"]
[Black "Slabek, Grzegorz"]
[Result "1-0"]
[ECO "D02"]
[WhiteElo "2159"]
[BlackElo "1962"]
[Annotator "RC"]
[PlyCount "120"]
[EventDate "2024.07.01"]
[EventType "team-tourn"]
[EventCountry "POL"]
[SourceTitle "playchess.com"]
[Source "ChessBase"]
[SourceQuality "1"]
[TimeControl "40/5400+30:1800+30"]

1. d4 {[%emt 0:00:10]} d5 {[%emt 0:00:20]} 2. Nf3 {[%emt 0:00:43]} Nf6 {[%emt 0:00:30]} 3. Bf4 {[%emt 0:00:25]} c6 {[%emt 0:01:07]} 4. e3 {[%emt 0:01:10]} Bg4 {[%emt 0:02:14]} 5. Nbd2 {[%emt 0:02:36]} e6 {[%emt 0:03:46]} 6. h3 {[%emt 0:02:14]} Bh5 {[%emt 0:00:30]} 7. g4 {[%emt 0:01:39]} Bg6 {[%emt 0:00:22]} 8. Ne5 {[%emt 0:00:55]} Nfd7 {[%emt 0:04:12]} 9. Nxg6 {[%emt 0:13:47]} hxg6 {[%emt 0:00:12]} 10. c3 {[%emt 0:01:32]} c5 {[%emt 0:05:01]} 11. Bd3 {[%emt 0:05:30]} Nc6 {[%emt 0:00:28]} 12. Qe2 {[%emt 0:04:41]} g5 {[%emt 0:01:27]} 13. Bg3 {[%emt 0:00:41]} Nf6 {[%emt 0:00:19]} 14. Bb5 {[%emt 0:15:29]} Bd6 {[%emt 0:06:29]} 15. dxc5 {[%emt 0:02:15]} Bxc5 {[%emt 0:03:01]} 16. e4 {[%emt 0:04:43]} a6 {[%emt 0:02:35]} 17. Ba4 {[%emt 0:05:35]} b5 {[%emt 0:03:50]} 18. Bc2 {[%emt 0:01:08]} Kf8 {[%emt 0:01:46]} 19. O-O-O {[%emt 0:02:30]} Qe7 {[%emt 0:03:54]} 20. exd5 {[%emt 0:02:40]} exd5 {[%emt 0:01:01]} 21. Qxe7+ {[%emt 0:01:14]} Bxe7 {[%emt 0:00:19]} 22. Nf3 {[%emt 0:06:54]} Rd8 {[%emt 0:05:17]} 23. Nxg5 {[%emt 0:06:47]} b4 {[%emt 0:01:59]} 24. Ba4 {[%emt 0:04:20]} Rc8 {[%emt 0:00:24]} 25. cxb4 {[%emt 0:02:55]} Nxg4 {[%emt 0:01:18]} 26. hxg4 {[%emt 0:01:23]} Bxg5+ {[%emt 0:00:26]} 27. Kb1 {[%emt 0:05:02]} Rxh1 {[%emt 0:00:20]} 28. Rxh1 {[%emt 0:00:04]} Kg8 {[%emt 0:01:32]} 29. Rh5 {[%emt 0:01:40]} Bd2 {[%emt 0:01:14]} 30. Rxd5 {[%emt 0:00:19]} Bxb4 {[%emt 0:02:16]} 31. Rd7 {[%emt 0:00:22]} Nd8 {[%emt 0:03:02]} 32. a3 {[%emt 0:01:54]} Be1 {[%emt 0:00:28]} 33. Ra7 {[%emt 0:00:23]} Ne6 {[%emt 0:02:16]} 34. Rxa6 {[%emt 0:00:17]} Nd4 {[%emt 0:02:12]} 35. Rd6 {[%emt 0:01:27]} Ne2 {[%emt 0:00:40]} 36. Rd1 {[%emt 0:01:09]} Ba5 {[%emt 0:00:38]} 37. Bd6 {[%emt 0:00:27]} Bb6 {[%emt 0:01:51]} 38. f3 {[%emt 0:01:05]} Nd4 {[%emt 0:00:51]} 39. f4 {[%emt 0:00:38]} Ra8 {[%emt 0:01:00]} 40. b3 {[%emt 0:00:29]} f6 {[%emt 0:00:43]} 41. Kb2 {[%emt 0:06:58]} Kf7 {[%emt 0:02:45]} 42. Bb4 {[%emt 0:01:21]} Rc8 {[%emt 0:01:09]} 43. Rd2 {[%emt 0:04:46]} Ke6 {[%emt 0:01:31]} 44. Bd7+ {[%emt 0:05:58]} Kxd7 {[%emt 0:00:35]} 45. Bc3 {[%emt 0:00:05]} Kc6 {[%emt 0:05:08]} 46. Bxd4 {[%emt 0:00:08]} Bc7 {[%emt 0:00:15]} 47. f5 {[%emt 0:01:27]} Re8 {[%emt 0:00:28]} 48. Rc2+ {[%emt 0:02:01]} Kd7 {[%emt 0:00:47]} 49. g5 {[%emt 0:00:51]} fxg5 {[%emt 0:00:39]} 50. Bxg7 {[%emt 0:00:47]} g4 {[%emt 0:00:15]} 51. f6 {[%emt 0:04:01]} Be5+ {[%emt 0:00:34]} 52. Ka2 {[%emt 0:00:29]} Re6 {[%emt 0:01:13]} 53. Rg2 {[%emt 0:03:13]} g3 {[%emt 0:00:14]} 54. b4 {[%emt 0:00:38]} Ke8 {[%emt 0:00:55]} 55. f7+ {[%emt 0:00:10]} Kxf7 {[%emt 0:00:26]} 56. Bxe5 {[%emt 0:00:05]} Rxe5 {[%emt 0:00:11]} 57. Rxg3 {[%emt 0:00:05]} Ke6 {[%emt 0:01:10]} 58. Rd3 {[%emt 0:00:55]} Re1 {[%emt 0:01:18]} 59. Kb3 {[%emt 0:00:25]} Ke5 {[%emt 0:00:22]} 60. a4 {[%emt 0:00:17]} Rb1+ {[%emt 0:00:52]} 1-0

[Event "WSTCC-50 2024"]
[Site "Krakow"]
[Date "2024.07.07"]
[Round "6.9"]
[White "Dettmann, Gerd"]
[Black "Lalic, Susan K"]
[Result "1/2-1/2"]
[ECO "C07"]
[WhiteElo "2121"]
[BlackElo "2235"]
[Annotator "TA"]
[PlyCount "64"]
[EventDate "2024.07.01"]
[EventType "team-tourn"]
[EventCountry "POL"]
[SourceTitle "playchess.com"]
[Source "ChessBase"]
[SourceQuality "1"]
[TimeControl "40/5400+30:1800+30"]

{[%evp 22,64,19,8,8,7,45,22,12,3,8,0,4,6,10,12,12,10,4,0,117,0,0,0,0,0,0,0,0,0,48,0,0,-16,0,0,0,0,8,-9,0,-8,6,-8,0]} 1. e4 {[%emt 0:00:03]} e6 {[%emt 0:00:12]} 2. d4 {[%emt 0:00:11]} d5 {[%emt 0:00:03]} 3. Nd2 {[%emt 0:00:11]} c5 {[%emt 0:00:06]} 4. exd5 {[%emt 0:00:27]} Qxd5 {[%emt 0:00:07]} 5. Ngf3 {[%emt 0:00:19]} cxd4 {[%emt 0:00:08]} 6. Bc4 {[%emt 0:00:35]} Qd6 {[%emt 0:00:08]} 7. O-O {[%emt 0:00:55]} Nf6 {[%emt 0:00:05]} 8. Nb3 {[%emt 0:00:35]} Nc6 {[%emt 0:00:03]} 9. Nbxd4 {[%emt 0:01:20]} Nxd4 {[%emt 0:00:37]} 10. Qxd4 {[%emt 0:00:26]} Qxd4 {[%emt 0:01:15]} 11. Nxd4 {[%emt 0:00:04][%cal Bf3d4,Bd4b3,Bb3a5,Ba5c4][%mdl 32]} a6 {[%emt 0:00:03]} 12. Re1 {[%emt 0:02:56]} Bc5 {[%emt 0:06:12]} 13. Nb3 {[%emt 0:01:33]} Bd6 {[%emt 0:01:19]} 14. Bg5 {[%emt 0:03:08]} b5 {[%emt 0:08:15]} 15. Bd3 {[%emt 0:00:37]} Bb7 {[%emt 0:00:38]} 16. a4 {[%emt 0:07:41]} b4 {[%emt 0:04:39]} 17. Na5 {[%emt 0:03:43]} Bd5 {[%emt 0:08:58]} 18. Bc4 {[%emt 0:06:14]} Bxc4 {[%emt 0:02:34]} 19. Nxc4 {[%emt 0:00:45]} Rd8 {[%emt 0:09:53]} (19... Be7 {simplifies} 20. Rad1 Rd8 21. Rxd8+ Kxd8 22. Be3 Nd5) 20. Rad1 {[%emt 0:02:50]} Ke7 {[%emt 0:12:49] [#]} (20... Be7 $11) 21. Rd3 {[%emt 0:03:40] White has more active pieces.} ({Better is} 21. Be3 $1 $16 {Strongly threatening Rxd6.} Bc7 22. Bc5+ Ke8 23. Bxb4) 21... Bc5 $11 {[%emt 0:06:36]} 22. Red1 {[%emt 0:01:12]} Rxd3 {[%emt 0:01:07]} 23. Rxd3 {[%emt 0:00:04]} h6 {[%emt 0:03:05][%cal Bh7h6,Bh6h5][%mdl 32]} 24. Bxf6+ {[%emt 0:00:30]} gxf6 {[%emt 0:00:03][%mdl 4096] Endgame. KRB-KRN} 25. Kf1 {[%emt 0:00:54]} Rg8 {[%emt 0:00:07]} (25... h5 $11 {should be considered.}) 26. g3 {[%emt 0:03:31]} (26. Rh3 $14) 26... h5 {[%emt 0:04:18] The position is equal.} 27. h3 {[%emt 0:03:09]} Rc8 {[%emt 0:03:37][%cal Oc5f2]} 28. b3 {[%emt 0:00:25]} f5 {[%emt 0:00:16]} 29. Ke2 {[%emt 0:00:50]} h4 {[%emt 0:05:01]} 30. Kf3 {[%emt 0:01:34]} hxg3 {[%emt 0:00:29]} 31. fxg3 {[%emt 0:00:17]} Kf6 {[%emt 0:00:10]} 32. Kf4 {[%emt 0:09:26]} Bf8 {[%emt 0:04:32] Weighted Error Value: White=0.16 (very precise) /Black=0.17 (very precise) .  Mistake:       	White=2     	Black=2      Inaccurate:     	---       	Black=1      OK:         	White=8     	Black=8} 1/2-1/2

[Event "WSTCC-50 2024"]
[Site "Krakow"]
[Date "2024.07.07"]
[Round "6.10"]
[White "Kaspi, Alexander"]
[Black "Godena, Michele"]
[Result "1/2-1/2"]
[ECO "D11"]
[WhiteElo "2365"]
[BlackElo "2426"]
[Annotator "TA"]
[PlyCount "23"]
[EventDate "2024.07.01"]
[EventType "team-tourn"]
[EventCountry "POL"]
[SourceTitle "playchess.com"]
[Source "ChessBase"]
[SourceQuality "1"]
[TimeControl "40/5400+30:1800+30"]

{[%evp 9,23,-8,18,12,7,18,7,0,20,14,5,14,12,6,0,-9]} 1. d4 {[%emt 0:00:06]} d5 {[%emt 0:00:06]} 2. c4 {[%emt 0:00:06]} c6 {[%emt 0:00:18]} 3. Nf3 {[%emt 0:00:14]} Nf6 {[%emt 0:00:11]} 4. Qb3 {[%emt 0:00:08]} e6 {[%emt 0:11:52]} 5. g3 {[%emt 0:00:45]} c5 {[%emt 0:02:26] The position is equal.} 6. cxd5 {[%emt 0:09:48]} exd5 {[%emt 0:00:36]} 7. Bg2 {[%emt 0:04:45]} Nc6 {[%emt 0:08:29]} 8. dxc5 {[%emt 0:03:25]} Bxc5 {[%emt 0:00:18]} 9. O-O {[%emt 0:00:09]} O-O {[%emt 0:00:07]} 10. Bg5 {[%emt 0:02:41]} d4 {[%emt 0:03:25] Against Nc3} 11. Nbd2 {[%emt 0:06:54]} Re8 {[%emt 0:01:20][%cal Oh7h6]} 12. Qc2 {[%emt 0:03:43] Not much happened in this game.   Weighted Error Value: White=0.01 (flawless) /Black=0.04 (flawless) .  OK:         	White=4     	Black=3} 1/2-1/2

[Event "WSTCC-50 2024"]
[Site "Krakow"]
[Date "2024.07.07"]
[Round "6.10"]
[White "Lauterbach, Ingrid"]
[Black "Moritz, Hartmut"]
[Result "1-0"]
[ECO "A04"]
[WhiteElo "2023"]
[BlackElo "2002"]
[Annotator "NA RC"]
[PlyCount "59"]
[EventDate "2024.07.01"]
[EventType "team-tourn"]
[EventCountry "POL"]
[SourceTitle "playchess.com"]
[Source "ChessBase"]
[SourceQuality "1"]
[TimeControl "40/5400+30:1800+30"]

1. Nf3 {[%emt 0:00:02]} b6 {[%emt 0:01:05]} 2. d3 {[%emt 0:01:22]} f5 {[%emt 0:02:17]} 3. e4 {[%emt 0:07:59]} e6 {[%emt 0:01:35]} 4. c3 {[%emt 0:03:09]} Bb7 {[%emt 0:10:22]} 5. Nbd2 {[%emt 0:09:33]} Nf6 {[%emt 0:02:02]} 6. e5 {[%emt 0:06:38]} Ng4 {[%emt 0:09:25]} 7. d4 {[%emt 0:02:28]} d5 {[%emt 0:10:43]} 8. Nb3 {[%emt 0:06:24]} h5 {[%emt 0:07:22]} 9. Ng5 {[%emt 0:01:41]} Qe7 {[%emt 0:23:33]} 10. h3 {[%emt 0:02:05]} Nh6 {[%emt 0:00:20]} 11. Qxh5+ {[%emt 0:00:28]} Nf7 {[%emt 0:00:18]} 12. Qg6 {[%emt 0:00:35]} Bc8 {[%emt 0:09:54]} 13. Bb5+ {[%emt 0:02:00]} c6 {[%emt 0:00:13]} 14. Be2 {[%emt 0:00:09]} Bd7 {[%emt 0:03:47]} 15. Nh7 {[%emt 0:06:32]} Kd8 {[%emt 0:02:24]} 16. g4 {[%emt 0:05:25]} Be8 {[%emt 0:02:46]} 17. Nxf8 {[%emt 0:03:23]} Qxf8 {[%emt 0:02:55]} 18. Qxe6 {[%emt 0:01:22]} Bd7 {[%emt 0:00:11]} 19. Qg6 {[%emt 0:00:31]} Nh6 {[%emt 0:03:47]} 20. e6 {[%emt 0:04:43]} Be8 {[%emt 0:00:31]} 21. Qg5+ {[%emt 0:00:06]} Qe7 {[%emt 0:01:10]} 22. gxf5 {[%emt 0:01:01]} Rf8 {[%emt 0:02:19]} 23. Bd3 {[%emt 0:02:57]} Ng8 {[%emt 0:01:22]} 24. Rg1 {[%emt 0:05:32]} Nh6 {[%emt 0:00:42]} 25. Qg2 {[%emt 0:03:00]} Nd7 {[%emt 0:00:31]} 26. Qxg7 {[%emt 0:00:25]} Qxg7 {[%emt 0:01:15]} 27. Rxg7 {[%emt 0:00:20]} Nxf5 {[%emt 0:00:15]} 28. Bxf5 {[%emt 0:02:15]} Rxf5 {[%emt 0:00:13]} 29. exd7 {[%emt 0:00:04]} Bxd7 {[%emt 0:00:22]} 30. Bg5+ {[%emt 0:00:42]} 1-0

[Event "WSTCC-50 2024"]
[Site "Krakow"]
[Date "2024.07.07"]
[Round "6.10"]
[White "Kawula, Andrzej"]
[Black "Hulme, William"]
[Result "1/2-1/2"]
[ECO "D59"]
[WhiteElo "1847"]
[BlackElo "1941"]
[Annotator "RC"]
[PlyCount "130"]
[EventDate "2024.07.01"]
[EventType "team-tourn"]
[EventCountry "POL"]
[SourceTitle "playchess.com"]
[Source "ChessBase"]
[SourceQuality "1"]
[TimeControl "40/5400+30:1800+30"]

1. d4 {[%emt 0:00:10]} Nf6 {[%emt 0:00:07]} 2. c4 {[%emt 0:00:16]} e6 {[%emt 0:00:06]} 3. Bg5 {[%emt 0:01:41]} d5 {[%emt 0:00:52]} 4. Nf3 {[%emt 0:01:57]} Be7 {[%emt 0:01:11]} 5. e3 {[%emt 0:00:16]} h6 {[%emt 0:00:18]} 6. Bh4 {[%emt 0:00:22]} O-O {[%emt 0:00:28]} 7. Nc3 {[%emt 0:00:16]} b6 {[%emt 0:00:44]} 8. cxd5 {[%emt 0:00:27]} Nxd5 {[%emt 0:00:15]} 9. Bxe7 {[%emt 0:00:33]} Qxe7 {[%emt 0:00:07]} 10. Nxd5 {[%emt 0:03:05]} exd5 {[%emt 0:00:09]} 11. Be2 {[%emt 0:00:09]} Be6 {[%emt 0:00:16]} 12. O-O {[%emt 0:00:17]} c5 {[%emt 0:00:24]} 13. Rc1 {[%emt 0:08:07]} c4 {[%emt 0:04:45]} 14. Ne5 {[%emt 0:05:46]} b5 {[%emt 0:04:12]} 15. f4 {[%emt 0:04:22]} Bf5 {[%emt 0:08:24]} 16. Bf3 {[%emt 0:05:01]} Rd8 {[%emt 0:05:08]} 17. Bxd5 {[%emt 0:16:10]} Rxd5 {[%emt 0:02:28]} 18. Qf3 {[%emt 0:01:49]} Qe6 {[%emt 0:03:54]} 19. e4 {[%emt 0:00:47]} Bxe4 {[%emt 0:00:19]} 20. Qxe4 {[%emt 0:01:37]} Nc6 {[%emt 0:18:51]} 21. f5 {[%emt 0:02:27]} Qd6 {[%emt 0:01:45]} 22. Nxc6 {[%emt 0:10:47]} Qxc6 {[%emt 0:00:06]} 23. f6 {[%emt 0:02:33]} Re8 {[%emt 0:06:48]} 24. Qf3 {[%emt 0:02:02]} gxf6 {[%emt 0:04:39]} 25. Qxf6 {[%emt 0:08:45]} Qxf6 {[%emt 0:00:15]} 26. Rxf6 {[%emt 0:00:06]} Rxd4 {[%emt 0:01:34]} 27. Rcf1 {[%emt 0:00:29]} Re7 {[%emt 0:04:15]} 28. h3 {[%emt 0:04:34]} Rd2 {[%emt 0:00:54]} 29. R1f3 {[%emt 0:05:14]} Rxb2 {[%emt 0:07:27]} 30. Rxh6 {[%emt 0:00:21]} Re1+ {[%emt 0:00:55]} 31. Kh2 {[%emt 0:00:17]} Rxa2 {[%emt 0:03:04]} 32. Rg3+ {[%emt 0:02:49]} Kf8 {[%emt 0:00:07]} 33. Rh8+ {[%emt 0:00:41]} Ke7 {[%emt 0:00:06]} 34. Rb8 {[%emt 0:00:09]} a6 {[%emt 0:01:53]} 35. Rb7+ {[%emt 0:00:20]} Ke6 {[%emt 0:01:13]} 36. h4 {[%emt 0:01:00]} Re5 {[%emt 0:02:48]} 37. Rg8 {[%emt 0:00:44]} Rf5 {[%emt 0:05:18]} 38. Kh3 {[%emt 0:01:05]} Kd5 {[%emt 0:01:29]} 39. g3 {[%emt 0:02:07]} Kc5 {[%emt 0:02:12]} 40. Kg4 {[%emt 0:01:25]} Rf1 {[%emt 0:02:36]} 41. h5 {[%emt 0:30:49]} c3 {[%emt 0:34:13]} 42. Rc8+ {[%emt 0:01:43]} Kb4 {[%emt 0:00:58]} 43. h6 {[%emt 0:00:49]} c2 {[%emt 0:03:38]} 44. Rbc7 {[%emt 0:00:46]} Rh1 {[%emt 0:00:00]} 45. Kg5 {[%emt 0:00:00]} Ra3 {[%emt 0:00:00]} 46. g4 {[%emt 0:00:00]} Rah3 {[%emt 0:00:00]} 47. Rxc2 {[%emt 0:00:00]} Rxh6 {[%emt 0:00:00]} 48. Rf2 {[%emt 0:00:00]} Rg6+ {[%emt 0:00:00]} 49. Kf5 {[%emt 0:00:00]} Rd6 {[%emt 0:00:00]} 50. Rf4+ {[%emt 0:00:00]} Kb3 {[%emt 0:00:00]} 51. Re8 {[%emt 0:00:00]} Rhd1 {[%emt 0:00:00]} 52. Kg5 {[%emt 0:00:00]} R1d5+ {[%emt 0:00:00]} 53. Kh4 {[%emt 0:00:00]} Rh6+ {[%emt 0:00:00]} 54. Kg3 {[%emt 0:00:00]} Rd3+ {[%emt 0:00:00]} 55. Kg2 {[%emt 0:00:00]} Rg6 {[%emt 0:00:00]} 56. Re7 {[%emt 0:00:00]} Rg7 {[%emt 0:00:00]} 57. Kf2 {[%emt 0:00:00]} Rh7 {[%emt 0:00:00]} 58. Ke2 {[%emt 0:00:00]} Rc3 {[%emt 0:00:00]} 59. Rexf7 {[%emt 0:00:00]} Rxf7 {[%emt 0:00:00]} 60. Rxf7 {[%emt 0:00:00]} b4 {[%emt 0:00:00]} 61. g5 {[%emt 0:00:00]} Rg3 {[%emt 0:00:00]} 62. Rf3+ {[%emt 0:00:00]} Rxf3 {[%emt 0:00:00]} 63. Kxf3 {[%emt 0:00:00]} Kc3 {[%emt 0:00:00]} 64. g6 {[%emt 0:00:00]} b3 {[%emt 0:00:00]} 65. g7 {[%emt 0:00:00]} b2 {[%emt 0:00:00]} 1/2-1/2

[Event "WSTCC-50 2024"]
[Site "Krakow"]
[Date "2024.07.07"]
[Round "6.11"]
[White "Ortega, Lexy"]
[Black "Fleish, Felix"]
[Result "1-0"]
[ECO "E92"]
[WhiteElo "2386"]
[BlackElo "2161"]
[Annotator "TA"]
[PlyCount "81"]
[EventDate "2024.07.01"]
[EventType "team-tourn"]
[EventCountry "POL"]
[SourceTitle "playchess.com"]
[Source "ChessBase"]
[SourceQuality "1"]
[TimeControl "40/5400+30:1800+30"]

{[%evp 16,80,34,26,34,28,24,27,34,45,41,16,28,20,19,0,0,0,0,9,0,0,0,0,0,0,25,25,21,44,46,41,195,177,572,558,533,275,349,361,355,343,357,372,360,374,469,402,476,478,578,599,590,580,908,612,609,620,1927,1887,29975,29977,29985,29986,29989,29990,29999]} 1. d4 {[%emt 0:00:03]} Nf6 {[%emt 0:00:08]} 2. Nf3 {[%emt 0:00:04]} g6 {[%emt 0:00:32]} 3. c4 {[%emt 0:00:04]} Bg7 {[%emt 0:00:09]} 4. Nc3 {[%emt 0:00:07]} O-O {[%emt 0:00:49]} 5. e4 {[%emt 0:00:04]} d6 {[%emt 0:00:07]} 6. Be2 {[%emt 0:00:07]} e5 {[%emt 0:00:14]} 7. d5 {[%emt 0:00:04]} a5 {[%emt 0:00:23]} 8. Bg5 {[%emt 0:00:06]} h6 {[%emt 0:00:20]} 9. Be3 {[%emt 0:00:12]} Ng4 {[%emt 0:01:25]} 10. Bd2 {[%emt 0:00:02]} f5 {[%emt 0:01:36]} 11. h3 {[%emt 0:00:07]} Nf6 {[%emt 0:00:11] White has an edge.} 12. exf5 {[%emt 0:00:15]} gxf5 {[%emt 0:00:23]} 13. g4 {[%emt 0:00:07]} fxg4 {[%emt 0:36:08]} 14. hxg4 {[%emt 0:00:08]} Nxg4 {[%emt 0:00:05][%cal Oe5e4] Strongly threatening ...e4!} 15. Ne4 {[%emt 0:00:13]} (15. Be3 {simplifies} Nxe3 16. fxe3 Nd7 17. Qd2) 15... Na6 {[%emt 0:00:35] ...Nc5 is the strong threat.} 16. Nh4 $1 {[%emt 0:09:32]} (16. Bxa5 $2 Rf4 17. Ng3 e4 $19) 16... Nc5 $1 {[%emt 0:01:20]} 17. Bxg4 {[%emt 0:11:44]} (17. Nxc5 $2 Nxf2 18. Ne6 Bxe6 19. dxe6 Nxh1 $19 (19... Nxd1 $2 20. Rxd1 Qf6 21. Rc1 $19)) 17... Nxe4 {[%emt 0:00:15]} 18. Be3 {[%emt 0:14:43]} Qf6 {[%emt 0:02:11] Dodges Ng6} 19. Bxc8 {[%emt 0:00:30]} Raxc8 {[%emt 0:00:02]} 20. Qc2 $36 {[%emt 0:06:27][%mdl 2048] White has the initiative.} Nc5 {[%emt 0:01:12]} 21. O-O-O {[%emt 0:16:41] Black must now prevent Rdg1.} e4 {[%emt 0:01:08]} 22. Rdg1 {[%emt 0:01:33] Hoping for Rg6.} (22. Kb1 {keeps more tension.} Nd3 23. Rdg1 Kf7 24. Bc1) 22... Nd3+ {[%emt 0:24:25]} 23. Kb1 {[%emt 0:00:02]} Ne5 {[%emt 0:00:20] Prevents Rg6. A mistake that costs the game.} (23... Nxf2 $2 24. Rh2 Rce8 (24... Nd3 $2 25. Rhg2 $18) 25. Bxf2 $18) (23... Kf7 $1 $14) 24. Qxe4 {[%emt 0:08:54][%cal Oe3h6] Bxh6! would now be deadly.} Nf3 $2 {[%emt 0:05:59] [#]} (24... Ng6 {is more resistant.} 25. Bd4 (25. Nxg6 $2 Qxb2#) 25... Qxd4 26. Qxd4 (26. Qxg6 $2 Qxb2#) (26. Qe6+ $2 Rf7 $19) 26... Bxd4) 25. Rxg7+ $1 $18 {[%emt 0:02:50][%mdl 512]} Qxg7 {[%emt 0:00:21]} 26. Nf5 {[%emt 0:13:13]} ({Worse is} 26. Nxf3 Rce8 27. Qh4 Qg6+ (27... Rxf3 28. Bxh6 Qh7+ 29. Kc1 $11) 28. Ka1 Rxf3 $11) 26... Rce8 {[%emt 0:03:59]} 27. Qxf3 {[%emt 0:04:59]} Qg6 {[%emt 0:00:10] [#]} 28. Qg4 {[%emt 0:02:28][%mdl 512]} Qxg4 {[%emt 0:01:27]} (28... Kf7 29. Qxg6+) 29. Nxh6+ {[%emt 0:00:08]} Kg7 {[%emt 0:00:09]} 30. Nxg4 {[%emt 0:00:01]} Kg6 {[%emt 0:00:21]} 31. Rg1 {[%emt 0:01:23]} Kf5 {[%emt 0:00:27]} 32. Kc2 {[%emt 0:01:19]} Re4 {[%emt 0:02:43]} 33. Nh6+ {[%emt 0:00:39]} Kf6 {[%emt 0:00:17]} 34. Kd3 {[%emt 0:00:31]} Rfe8 {[%emt 0:01:04]} 35. Bd4+ {[%emt 0:02:21]} Rxd4+ {[%emt 0:01:02]} 36. Kxd4 {[%emt 0:00:02] KRN-KR} Re2 {[%emt 0:00:13]} 37. f4 {[%emt 0:01:43][%cal Bf2f4,Bf4f5][%mdl 32] And now f5 would win.} Rxb2 {[%emt 0:00:34]} 38. f5 {[%emt 0:00:11] White mates.} Rd2+ {[%emt 0:00:10]} 39. Ke3 {[%emt 0:00:20]} Rxa2 {[%emt 0:00:34]} 40. Rg6+ {[%emt 0:00:09]} Ke5 {[%emt 0:00:20]} 41. Re6# {[%emt 0:30:10] Weighted Error Value: White=0.29 (precise) /Black=0.70.  Mistake:       	---       	Black=2      Inaccurate:     	White=2     	Black=1      OK:         	White=12    	Black=5      Best:        	White=4     	Black=3      Strong:       	White=1     	Black=1      Brilliant:      	White=1     	---} 1-0

[Event "WSTCC-50 2024"]
[Site "Krakow"]
[Date "2024.07.07"]
[Round "6.11"]
[White "Dettmann, Holger"]
[Black "Regan, Natasha K"]
[Result "1/2-1/2"]
[ECO "A04"]
[WhiteElo "1965"]
[BlackElo "2015"]
[Annotator "NA RC"]
[PlyCount "53"]
[EventDate "2024.07.01"]
[EventType "team-tourn"]
[EventCountry "POL"]
[SourceTitle "playchess.com"]
[Source "ChessBase"]
[SourceQuality "1"]
[TimeControl "40/5400+30:1800+30"]

1. Nf3 {[%emt 0:00:20]} f5 {[%emt 0:00:10]} 2. g3 {[%emt 0:00:35]} Nf6 {[%emt 0:00:17]} 3. Bg2 {[%emt 0:00:05]} g6 {[%emt 0:00:22]} 4. b3 {[%emt 0:08:33]} Bg7 {[%emt 0:00:48]} 5. Bb2 {[%emt 0:00:13]} d6 {[%emt 0:01:20]} 6. O-O {[%emt 0:03:08]} e5 {[%emt 0:04:57]} 7. c4 {[%emt 0:00:09]} O-O {[%emt 0:02:14]} 8. Nc3 {[%emt 0:01:35]} Nc6 {[%emt 0:04:51]} 9. d4 {[%emt 0:17:36]} e4 {[%emt 0:04:30]} 10. Ne1 {[%emt 0:03:15]} Qe8 {[%emt 0:03:19]} 11. e3 {[%emt 0:04:11]} g5 {[%emt 0:02:21]} 12. Nc2 {[%emt 0:09:07]} Bd7 {[%emt 0:03:12]} 13. f4 {[%emt 0:08:54]} exf3 {[%emt 0:05:40]} 14. Bxf3 {[%emt 0:00:05]} Ng4 {[%emt 0:04:19]} 15. Nd5 {[%emt 0:00:12]} Rc8 {[%emt 0:04:20]} 16. Bxg4 {[%emt 0:08:20]} fxg4 {[%emt 0:00:25]} 17. Rxf8+ {[%emt 0:00:04]} Qxf8 {[%emt 0:03:34]} 18. Qd3 {[%emt 0:00:25]} Qf5 {[%emt 0:10:54]} 19. e4 {[%emt 0:00:13]} Qf3 {[%emt 0:01:01]} 20. Qxf3 {[%emt 0:05:29]} gxf3 {[%emt 0:00:10]} 21. Kf2 {[%emt 0:00:16]} g4 {[%emt 0:03:37]} 22. Re1 {[%emt 0:00:03]} Kf7 {[%emt 0:04:22]} 23. Nf4 {[%emt 0:05:10]} Re8 {[%emt 0:05:43]} 24. Nd5 {[%emt 0:02:01]} Rc8 {[%emt 0:03:09]} 25. Nf4 {[%emt 0:00:03]} Re8 {[%emt 0:01:30]} 26. Nd5 {[%emt 0:00:12]} Rc8 {[%emt 0:00:13]} 27. Nf4 1/2-1/2

[Event "WSTCC-50 2024"]
[Site "Krakow"]
[Date "2024.07.07"]
[Round "6.11"]
[White "Dawson, Alastair"]
[Black "Czernicki, Bogdan"]
[Result "1/2-1/2"]
[ECO "A04"]
[WhiteElo "1850"]
[BlackElo "1886"]
[Annotator "NA RC"]
[PlyCount "27"]
[EventDate "2024.07.01"]
[EventType "team-tourn"]
[EventCountry "POL"]
[SourceTitle "playchess.com"]
[Source "ChessBase"]
[SourceQuality "1"]
[TimeControl "40/5400+30:1800+30"]

1. Nf3 {[%emt 0:00:05]} c5 {[%emt 0:00:14]} 2. c4 {[%emt 0:00:14]} Nc6 {[%emt 0:00:09]} 3. Nc3 {[%emt 0:00:18]} e5 {[%emt 0:00:13]} 4. g3 {[%emt 0:00:20]} d6 {[%emt 0:00:08]} 5. Bg2 {[%emt 0:00:09]} h6 {[%emt 0:00:31]} 6. d3 {[%emt 0:03:29]} Be6 {[%emt 0:05:16]} 7. a3 {[%emt 0:04:17]} a5 {[%emt 0:00:25]} 8. Nd5 {[%emt 0:05:23]} g6 {[%emt 0:02:05]} 9. e4 {[%emt 0:02:22]} Bg7 {[%emt 0:00:08]} 10. Be3 {[%emt 0:01:40]} Nge7 {[%emt 0:00:15]} 11. Qd2 {[%emt 0:03:47]} Nd4 {[%emt 0:00:39]} 12. Bxd4 {[%emt 0:02:45]} cxd4 {[%emt 0:01:06]} 13. O-O {[%emt 0:01:04]} O-O {[%emt 0:00:45]} 14. b4 1/2-1/2

[Event "WSTCC-50 2024"]
[Site "Krakow"]
[Date "2024.07.07"]
[Round "6.12"]
[White "Jackson, Sheila"]
[Black "Van Bentum, Horst"]
[Result "1/2-1/2"]
[ECO "C50"]
[WhiteElo "1988"]
[BlackElo "1951"]
[Annotator "NA RC"]
[PlyCount "32"]
[EventDate "2024.07.01"]
[EventType "team-tourn"]
[EventCountry "POL"]
[SourceTitle "playchess.com"]
[Source "ChessBase"]
[SourceQuality "1"]
[TimeControl "40/5400+30:1800+30"]

1. e4 {[%emt 0:00:02]} e5 {[%emt 0:00:12]} 2. Nf3 {[%emt 0:00:06]} Nc6 {[%emt 0:00:17]} 3. Bc4 {[%emt 0:00:11]} Be7 {[%emt 0:00:20]} 4. d4 {[%emt 0:00:11]} d6 {[%emt 0:00:12]} 5. dxe5 {[%emt 0:00:08]} dxe5 {[%emt 0:00:07]} 6. Qxd8+ {[%emt 0:00:07]} Bxd8 {[%emt 0:00:17]} 7. c3 {[%emt 0:00:06]} Nf6 {[%emt 0:01:12]} 8. Nbd2 {[%emt 0:00:06]} O-O {[%emt 0:01:28]} 9. O-O {[%emt 0:00:46]} Be7 {[%emt 0:07:28]} 10. Re1 {[%emt 0:00:23]} Bd6 {[%emt 0:03:12]} 11. b4 {[%emt 0:01:35]} a5 {[%emt 0:10:07]} 12. b5 {[%emt 0:01:09]} Ne7 {[%emt 0:00:27]} 13. a4 {[%emt 0:01:03]} Ng6 {[%emt 0:01:18]} 14. g3 {[%emt 0:09:39]} Re8 {[%emt 0:03:07]} 15. Kg2 {[%emt 0:01:38]} h6 {[%emt 0:03:08]} 16. Bf1 {[%emt 0:17:57]} b6 {[%emt 0:00:59]} 1/2-1/2